bitfinex/quotes_ETHUSD_20260130
["timestamp","ask_amount","ask_price","bid_price","bid_amount"]
[1769798571509,0.781,2682.8,2681.6,14.31241473]
[1769798571834,3.7259688,2683.9,2682.1,13.38013885]
[1769798572152,0.9324803,2684.0,2682.2,14.71965252]
[1769798572348,0.9324803,2684.0,2682.4,13.38013885]
[1769798572841,0.001,2684.0,2682.6,13.39513669]
[1769798573209,0.93082135,2685.8,2683.6,13.38013885]
[1769798573432,0.93082135,2685.8,2683.4,0.01499784]
[1769798573433,0.4654071,2685.7,2683.8,13.38013885]
[1769798573617,3.72276487,2686.2,2684.1,13.38013885]
[1769798573832,0.781,2686.4,2684.4,13.38013885]
[1769798574142,0.01499784,2686.0,2683.7,1.33801389]
[1769798574343,0.1024,2685.8,2683.8,14.31165386]
[1769798574527,0.1024,2685.8,2683.9,1.93758076]
[1769798575140,0.1024,2685.8,2683.9,15.31771961]
[1769798575340,0.01499784,2685.7,2683.9,15.31771961]
[1769798575747,0.01499784,2685.6,2683.9,15.31771961]
[1769798576055,0.01499784,2685.6,2683.9,13.38013885]
[1769798576244,0.2335703,2685.7,2683.9,13.38013885]
[1769798576446,0.2335703,2685.5,2683.9,13.38013885]
[1769798576747,0.01499784,2685.2,2683.4,13.38013885]
[1769798576930,0.01499784,2685.2,2683.5,0.93160459]
[1769798577124,0.01499784,2685.2,2683.5,1.43117434]
[1769798577641,0.2335703,2685.3,2683.8,0.93150796]
[1769798577945,0.2335703,2685.3,2683.8,0.93151195]
[1769798578141,0.24856814,2685.3,2683.1,13.39513669]
[1769798578343,0.2335703,2685.1,2683.4,13.38013885]
[1769798578531,0.93102934,2685.2,2683.4,13.38013885]
[1769798578733,0.46551467,2685.1,2683.5,1.33801389]
[1769798579447,0.46551467,2685.1,2683.5,14.71815274]
[1769798580347,0.2335703,2685.0,2683.0,1.71277437]
[1769798580719,0.2335703,2685.0,2682.4,13.38013885]
[1769798580720,0.01499784,2684.4,2682.4,13.38013885]
[1769798580923,0.01499784,2684.2,2682.4,13.38013885]
[1769798581839,0.1024,2684.5,2682.4,13.38013885]
[1769798582038,0.001,2685.0,2683.2,13.38013885]
[1769798582226,0.93211741,2685.0,2683.4,13.38013885]
[1769798582426,0.93211741,2685.0,2683.3,1.33951367]
[1769798582640,0.93211741,2685.0,2683.3,13.38013885]
[1769798582821,0.94711525,2685.0,2683.3,13.38013885]
[1769798583017,0.2335703,2684.9,2683.3,13.38013885]
[1769798583651,0.93211741,2685.0,2683.3,13.38013885]
[1769798583852,0.93211741,2685.0,2683.1,0.94673695]
[1769798583853,3.72154674,2687.1,2684.7,13.38013885]
[1769798584055,0.37889326,2687.5,2685.0,13.38013885]
[1769798584056,1.39758341,2687.0,2685.0,13.38013885]
[1769798584350,1.39758341,2687.2,2685.8,13.38013885]
[1769798584551,3.71851379,2689.3,2686.9,13.38013885]
[1769798584753,0.39130474,2689.2,2687.9,13.38013885]
[1769798584956,0.94819072,2690.2,2688.7,0.01499784]
[1769798585132,0.0188731,2690.2,2689.1,13.39513669]
[1769798585331,0.0188731,2690.2,2688.5,13.37637885]
[1769798585332,0.94820466,2690.2,2688.5,13.37637885]
[1769798585643,0.01499784,2689.9,2687.8,13.38013885]
[1769798585844,0.46654004,2690.1,2687.9,0.34376643]
[1769798586069,1.24754004,2690.1,2688.4,13.39513669]
[1769798586245,0.46654004,2690.1,2687.9,0.781]
[1769798586445,0.46654004,2690.1,2688.2,13.73808024]
[1769798586760,0.0188731,2690.2,2689.1,13.73808024]
[1769798587055,0.92878106,2691.7,2689.6,13.73808024]
[1769798587255,0.01499784,2691.3,2689.2,13.73808024]
[1769798587426,0.01499784,2691.0,2689.2,13.73808024]
[1769798587626,0.1024,2691.6,2689.2,13.73808024]
[1769798587954,0.01499784,2691.0,2689.2,13.73808024]
[1769798588156,0.01499784,2690.8,2688.7,0.92979885]
[1769798588457,0.01499784,2689.7,2687.9,13.73808024]
[1769798588656,0.01499784,2689.6,2687.9,13.73808024]
[1769798588843,0.01499784,2690.2,2688.1,13.73808024]
[1769798589026,0.11739784,2690.5,2688.1,13.73808024]
[1769798589226,0.11739784,2690.3,2688.1,13.73808024]
[1769798589455,0.01499784,2689.4,2687.4,13.73808024]
[1769798589656,0.01499784,2689.7,2687.9,14.66815317]
[1769798589955,0.01499784,2689.4,2687.2,13.73808024]
[1769798590256,0.01499784,2688.3,2685.8,13.73808024]
[1769798590443,0.01499784,2688.2,2686.4,3.72243425]
[1769798590642,0.93009412,2687.9,2686.0,13.73808024]
[1769798590946,0.46654685,2687.8,2686.1,1.37380802]
[1769798591127,0.9300764,2688.0,2686.1,15.11188826]
[1769798591453,3.73233176,2690.2,2687.2,13.73808024]
[1769798591623,3.73233176,2690.2,2686.8,0.01499784]
[1769798591624,0.01499784,2690.0,2687.7,0.01499784]
[1769798591831,3.71733392,2690.2,2687.9,0.01499784]
[1769798592053,3.71733392,2690.2,2687.6,0.01499784]
[1769798592054,0.2335703,2689.9,2687.6,0.01499784]
[1769798592256,0.2335703,2689.7,2687.3,0.01499784]
[1769798592438,0.2335703,2689.1,2686.9,0.01499784]
[1769798592756,1.16331852,2688.9,2686.9,0.01499784]
[1769798592943,0.2335703,2688.5,2686.3,0.01499784]
[1769798593259,0.2335703,2688.1,2686.1,1.37380802]
[1769798593459,0.2335703,2688.1,2685.8,3.72315395]
[1769798593755,0.2335703,2688.2,2686.1,0.93069829]
[1769798593934,0.11739784,2688.3,2686.1,0.93071538]
[1769798594139,0.1024,2688.3,2686.2,0.01499784]
[1769798594474,0.1024,2688.3,2686.5,0.93055866]
[1769798594645,0.1024,2688.3,2686.5,0.46529975]
[1769798594961,0.1024,2688.3,2686.0,0.01499784]
[1769798594962,0.01499784,2688.1,2686.0,0.93075162]
[1769798595129,0.1024,2688.1,2686.0,0.93075162]
[1769798595329,0.92999032,2688.2,2686.1,13.75307808]
[1769798596475,0.92999032,2688.2,2686.2,0.01499784]
[1769798596984,3.71885459,2689.2,2687.0,0.01499784]
[1769798597133,3.71885459,2689.2,2687.2,0.01499784]
[1769798597544,3.71885459,2689.2,2687.1,0.01499784]
[1769798597739,3.71885459,2689.2,2687.0,1.4683553]
[1769798598042,0.2335703,2688.9,2686.7,0.93049885]
[1769798598269,13.85184689,2689.0,2686.5,0.93055848]
[1769798598476,0.2335703,2688.6,2686.5,0.93055848]
[1769798598665,0.3359703,2688.8,2686.6,0.93052314]
[1769798598988,0.2335703,2688.6,2686.4,0.93061346]
[1769798599351,0.2335703,2688.6,2686.5,0.46681923]
[1769798599776,3.7179408,2689.7,2687.1,0.01499784]
[1769798599991,0.32952703,2689.8,2688.1,0.01499784]
[1769798600283,3.71650782,2690.7,2688.4,13.75307808]
[1769798600486,0.92895362,2691.2,2688.7,0.01499784]
[1769798600669,0.78,2691.0,2688.7,13.75307808]
[1769798600992,0.92909171,2690.8,2688.8,0.9297828]
[1769798601155,0.94408955,2690.8,2688.8,0.9297828]
[1769798601362,0.46604564,2690.7,2688.9,1.4667863]
[1769798601987,0.01499784,2690.6,2688.9,1.4667863]
[1769798602369,0.01499784,2690.1,2688.0,13.73808024]
[1769798602548,0.01499784,2690.1,2687.7,0.01499784]
[1769798602549,0.01499784,2690.4,2688.7,0.92981691]
[1769798602749,0.01499784,2690.2,2688.3,13.73808024]
[1769798603068,0.01499784,2690.2,2688.3,14.6680282]
[1769798603069,0.92933348,2690.1,2688.3,14.6680282]
[1769798603281,0.01499784,2689.8,2687.7,13.73808024]
[1769798603499,0.01499784,2689.2,2687.3,0.93029496]
[1769798603787,0.78,2689.7,2687.1,13.73808024]
[1769798603970,0.46616652,2690.0,2687.5,13.75307808]
[1769798604175,0.01499784,2689.8,2688.0,0.93003626]
[1769798604496,0.01499784,2689.6,2687.9,14.66815242]
[1769798604823,0.46616652,2690.0,2688.3,0.94494436]
[1769798604951,0.46616652,2690.0,2688.6,0.01499784]
[1769798605288,0.92934446,2690.1,2688.7,0.01499784]
[1769798605451,1.39519232,2690.7,2688.7,13.75307808]
[1769798605651,0.46604564,2690.7,2689.4,0.01499784]
[1769798605970,0.92902266,2691.0,2688.9,0.01499784]
[1769798606175,0.92902266,2691.0,2689.2,0.01499784]
[1769798606374,0.92902266,2691.0,2689.3,0.01499784]
[1769798606790,0.92902266,2691.0,2688.9,13.75307808]
[1769798606953,2.32537,2690.8,2688.9,14.68282377]
[1769798607150,0.2335703,2690.6,2688.4,0.01499784]
[1769798607396,0.2335703,2690.6,2688.8,0.92976322]
[1769798607555,0.3359703,2690.9,2688.7,3.73419097]
[1769798607751,0.3359703,2690.9,2688.7,0.01499784]
[1769798608055,13.61827659,2691.6,2688.7,0.01499784]
[1769798608056,0.01499784,2692.5,2690.3,13.73808024]
[1769798608255,0.92845911,2692.7,2690.5,13.73808024]
[1769798608991,0.92829824,2693.1,2690.7,13.73808024]
[1769798609187,2.10775,2693.0,2690.7,13.73808024]
[1769798609415,0.01499784,2692.6,2690.0,13.73808024]
[1769798609709,0.3359703,2691.8,2689.4,13.73808024]
[1769798609990,0.3359703,2691.8,2689.0,0.78]
[1769798609991,0.78,2691.9,2690.5,0.92918954]
[1769798610210,0.78,2691.9,2689.3,13.73808024]
[1769798610489,0.01499784,2691.3,2689.5,13.73808024]
[1769798610695,0.01499784,2691.3,2689.6,1.37380802]
[1769798610902,0.92888459,2691.4,2689.6,18.82983963]
[1769798611055,0.92878106,2691.7,2689.6,16.04137076]
[1769798611257,0.9437789,2691.7,2689.6,16.04137076]
[1769798611482,0.92878106,2691.7,2689.6,16.04137076]
[1769798611656,0.01499784,2691.4,2689.7,1.97593957]
[1769798611975,0.01499784,2691.4,2689.0,0.78]
[1769798611976,0.01499784,2690.7,2688.9,0.92973808]
[1769798612283,0.01499784,2689.9,2688.8,13.74008024]
[1769798612487,0.01499784,2689.8,2688.8,13.74008024]
[1769798612691,0.01499784,2689.8,2688.8,0.002]
[1769798612692,0.01499784,2689.6,2688.8,0.002]
[1769798612862,0.01499784,2689.2,2688.8,0.001]
[1769798613054,0.01499784,2689.4,2688.1,13.73808024]
[1769798613055,0.94455399,2689.5,2688.1,14.6671045]
[1769798613254,0.01499784,2689.3,2688.2,1.46671045]
[1769798613492,0.94455399,2689.5,2688.2,1.46671045]
[1769798613789,0.01499784,2689.5,2688.2,1.46671045]
[1769798613989,0.01499784,2689.2,2688.2,1.46671045]
[1769798614202,0.92952542,2689.6,2687.6,5.09608295]
[1769798614203,0.779,2689.3,2687.9,0.93008909]
[1769798614366,0.01499784,2689.2,2688.0,0.9300313]
[1769798614570,0.01499784,2689.2,2687.6,1.37530781]
[1769798614571,0.01499784,2688.8,2687.6,1.37530781]
[1769798614892,0.01499784,2688.6,2687.3,0.93029841]
[1769798615199,0.94486374,2688.6,2687.3,0.93029841]
[1769798615367,0.01499784,2688.2,2686.9,0.93041713]
[1769798615685,3.73440571,2688.8,2687.2,14.66841322]
[1769798615686,0.94478622,2688.8,2687.2,14.66841322]
[1769798615996,0.01499784,2688.9,2687.2,14.66841322]
[1769798616156,0.1024,2689.3,2687.3,15.57705613]
[1769798616157,0.01499784,2689.1,2687.3,15.57705613]
[1769798616494,0.01499784,2688.9,2687.3,15.57705613]
[1769798616666,0.01499784,2689.6,2687.3,15.57705613]
[1769798616991,0.01499784,2689.4,2687.5,13.4249032]
[1769798617493,0.01499784,2689.3,2687.5,13.4249032]
[1769798617692,0.01499784,2689.2,2687.6,15.33062582]
[1769798617905,0.01499784,2689.1,2687.6,15.33062582]
[1769798618062,0.01499784,2688.9,2687.6,15.33062582]
[1769798618261,0.01499784,2688.9,2686.4,3.72236225]
[1769798618262,0.01499784,2688.7,2687.0,13.89510878]
[1769798618457,0.01499784,2688.9,2687.3,14.82538909]
[1769798618682,0.01499784,2689.4,2687.3,14.82538909]
[1769798618888,0.01499784,2689.0,2687.3,13.89510878]
[1769798619075,0.01499784,2688.5,2687.3,14.82538608]
[1769798619276,3.73361093,2689.2,2687.3,14.82538608]
[1769798619277,0.01499784,2689.4,2687.5,13.89510878]
[1769798619488,0.01499784,2690.1,2687.5,13.89510878]
[1769798619815,0.01499784,2690.6,2687.5,14.67510878]
[1769798619962,3.73126448,2691.0,2687.9,13.89510878]
[1769798619963,0.01499784,2690.7,2687.9,13.89510878]
[1769798620298,0.01499784,2690.6,2688.1,13.89510878]
[1769798620460,0.01499784,2690.7,2688.3,13.89510878]
[1769798620793,0.01499784,2690.7,2688.2,2.83951088]
[1769798620794,0.01499784,2690.9,2688.5,13.89510878]
[1769798620992,0.1024,2691.2,2688.7,13.89510878]
[1769798621195,0.9289191,2691.3,2688.7,13.89510878]
[1769798621357,0.94391694,2691.3,2688.7,13.89510878]
[1769798621691,0.001,2690.9,2688.9,13.89510878]
[1769798622977,0.001,2690.9,2689.1,13.89510878]
[1769798623308,0.001,2690.9,2689.0,0.92971364]
[1769798623309,0.001,2690.9,2689.3,13.89510878]
[1769798624769,6.46805735,2692.8,2689.0,0.92971364]
[1769798624770,3.71388249,2692.8,2689.5,13.89510878]
[1769798624974,0.92853959,2692.4,2689.9,13.89510878]
[1769798625191,1.3013819,2692.6,2690.0,13.89510878]
[1769798625394,0.9284833,2692.6,2690.0,13.89510878]
[1769798625702,0.92844332,2692.7,2690.2,13.89510878]
[1769798625863,0.92844332,2692.7,2690.4,13.89510878]
[1769798626064,0.01499784,2692.3,2690.4,13.89510878]
[1769798626395,0.92844332,2692.7,2690.4,13.89510878]
[1769798626704,0.92844332,2692.7,2690.3,0.779]
[1769798626705,0.01499784,2692.4,2690.6,13.89510878]
[1769798626864,0.01499784,2692.3,2690.6,13.89510878]
[1769798627203,0.01499784,2693.0,2691.1,13.89510878]
[1769798627410,0.19416717,2694.3,2692.9,13.89510878]
[1769798627710,0.58220622,2694.9,2694.2,0.19402311]
[1769798627907,0.0188731,2695.6,2694.2,0.19402311]
[1769798627908,0.92747171,2695.5,2694.2,0.19402311]
[1769798628111,3.72875994,2695.6,2694.2,0.19402311]
[1769798628112,0.0188731,2695.6,2694.2,0.19402311]
[1769798628410,0.0188731,2695.6,2694.3,0.34288929]
[1769798628595,13.9234442,2697.4,2694.2,14.08913189]
[1769798628596,3.70741111,2697.5,2694.7,13.89510878]
[1769798628799,0.01499784,2697.3,2694.9,13.89510878]
[1769798629107,0.01499784,2696.4,2694.2,0.19402311]
[1769798629310,0.01499784,2695.8,2694.2,0.19402311]
[1769798629476,0.779,2695.7,2694.2,0.19402311]
[1769798630096,0.01499784,2695.2,2694.2,0.19402311]
[1769798630275,0.779,2695.7,2694.2,0.19402311]
[1769798630478,0.779,2695.6,2694.2,0.19402311]
[1769798630680,0.01499784,2695.9,2694.2,0.19402311]
[1769798630880,0.01499784,2696.1,2694.2,0.19402311]
[1769798630881,0.01499784,2696.0,2694.2,0.19402311]
[1769798631088,0.01499784,2695.3,2694.2,0.19402311]
[1769798631290,0.01499784,2694.8,2694.2,0.19402311]
[1769798631508,0.01499784,2694.8,2694.2,0.00151581]
[1769798631819,0.01499784,2695.3,2692.8,13.71187204]
[1769798632122,0.79399784,2695.3,2693.7,0.92808778]
[1769798632313,0.9274029,2695.7,2693.7,0.4640713]
[1769798632611,0.29211187,2696.0,2694.2,14.82299974]
[1769798632777,0.92712775,2696.5,2694.2,14.82299974]
[1769798632975,0.19377555,2697.3,2694.5,0.92781592]
[1769798633215,0.19386347,2697.4,2694.8,13.89510878]
[1769798633424,0.01499784,2698.0,2695.0,13.89510878]
[1769798633581,0.01499784,2698.3,2694.7,0.1024]
[1769798633582,5.252891,2698.3,2695.2,13.89510878]
[1769798633783,1.12012023,2698.9,2696.8,2.130193]
[1769798634001,0.0070399,2699.0,2697.6,2.130193]
[1769798634206,0.0070399,2699.0,2697.6,13.89510878]
[1769798634384,0.92589163,2700.1,2697.6,13.89510878]
[1769798634721,0.46294582,2700.0,2698.7,13.89510878]
[1769798634916,0.01499784,2699.9,2697.8,13.89510878]
[1769798635123,0.01499784,2699.8,2697.9,0.92664665]
[1769798635433,0.01499784,2699.3,2697.3,13.89510878]
[1769798635634,0.79299784,2699.7,2697.7,0.92670081]
[1769798635838,0.01499784,2699.5,2697.3,13.89510878]
[1769798636178,3.70301795,2700.6,2697.9,13.89510878]
[1769798636350,0.92561738,2700.9,2697.9,13.89510878]
[1769798636698,0.94446505,2701.0,2698.1,13.89510878]
[1769798637000,0.94446505,2701.0,2698.5,13.89510878]
[1769798637195,0.95946289,2701.0,2698.5,13.89510878]
[1769798637401,0.46617954,2700.9,2698.7,13.89510878]
[1769798637624,0.94445657,2701.0,2698.7,13.89510878]
[1769798637928,0.01499784,2700.7,2698.9,13.89510878]
[1769798638110,0.94445657,2701.0,2698.9,13.89510878]
[1769798638288,0.0188731,2701.0,2698.9,13.89510878]
[1769798638492,0.0188731,2701.0,2698.6,1.48215837]
[1769798638493,1.70326168,2702.0,2699.1,13.89430878]
[1769798638721,0.92513784,2702.3,2699.3,13.89510878]
[1769798638919,0.92513784,2702.3,2699.2,2.28469362]
[1769798638920,0.01499784,2701.5,2699.2,2.28469362]
[1769798639227,0.92558311,2701.0,2698.7,14.82148073]
[1769798639534,0.01499784,2702.2,2698.9,13.89510878]
[1769798639686,0.92482983,2703.2,2699.5,13.89510878]
[1769798639885,0.46241492,2703.1,2699.9,13.99750878]
[1769798640125,0.46241492,2703.1,2700.1,13.89510878]
[1769798640331,0.01499784,2703.0,2700.1,13.89510878]
[1769798640632,0.46241492,2703.1,2700.1,13.89510878]
[1769798640842,0.01499784,2702.8,2700.3,13.89510878]
[1769798640987,0.778,2702.7,2700.3,15.28461966]
[1769798641192,0.92493247,2702.9,2700.4,14.82089755]
[1769798641392,0.02553497,2704.1,2700.7,13.89510878]
[1769798641592,0.02553497,2704.1,2701.4,13.99750878]
[1769798641908,0.01499784,2704.5,2702.3,13.89510878]
[1769798642481,0.01499784,2704.5,2700.9,13.89510878]
[1769798642482,0.01499784,2703.2,2700.9,13.89510878]
[1769798642771,0.01499784,2703.7,2700.9,13.89510878]
[1769798642922,0.01499784,2703.7,2700.8,1.38951088]
[1769798642923,1.11250732,2704.8,2701.9,13.91010662]
[1769798643118,1.03511683,2704.9,2702.8,13.89510878]
[1769798643344,1.03511751,2704.9,2704.0,0.01568453]
[1769798643530,0.01499784,2705.3,2702.8,13.89510878]
[1769798643746,0.0188731,2706.5,2703.9,13.89510878]
[1769798644056,0.01499784,2706.0,2703.2,13.91010662]
[1769798644352,0.79199784,2705.9,2703.4,0.01499784]
[1769798644518,0.01499784,2705.1,2703.2,13.89510878]
[1769798644715,0.92373632,2706.4,2704.1,0.01499784]
[1769798645018,0.92373632,2706.4,2704.7,0.01499784]
[1769798645242,0.92373632,2706.4,2703.2,1.38951088]
[1769798645243,0.01499784,2705.6,2703.2,1.38951088]
[1769798645522,0.93873416,2706.4,2702.9,13.91010662]
[1769798645523,0.01499784,2705.3,2702.9,13.89510878]
[1769798645836,0.777,2705.2,2703.2,3.71424826]
[1769798646038,0.01499784,2704.7,2702.3,13.91010662]
[1769798646224,2.31793,2705.6,2703.3,13.89510878]
[1769798646427,0.24829062,2705.5,2703.6,0.9246917]
[1769798646624,0.1024,2706.0,2703.7,0.92465169]
[1769798646848,0.8794,2706.0,2703.4,13.64183519]
[1769798647050,0.0188731,2706.5,2705.1,0.01499784]
[1769798647415,0.00211993,2708.1,2707.3,0.01499784]
[1769798647527,0.57913821,2709.3,2707.7,0.01499784]
[1769798647719,0.92988374,2709.0,2708.1,0.193]
[1769798647940,1.03192182,2710.8,2708.1,0.193]
[1769798648264,1.03192182,2710.8,2709.3,0.01499784]
[1769798648265,0.10965082,2710.8,2709.3,0.01499784]
[1769798648473,1.03188973,2710.8,2709.1,0.01499784]
[1769798648752,8.59132184,2711.7,2709.1,13.64183519]
[1769798648943,0.01499784,2710.6,2708.2,13.62683735]
[1769798649120,0.01499784,2709.6,2708.1,0.193]
[1769798649321,0.776,2709.5,2708.1,0.193]
[1769798649527,0.01499784,2709.4,2708.1,0.01451618]
[1769798649728,0.92254326,2709.9,2708.1,0.01451618]
[1769798649947,1.23727163,2709.8,2708.1,0.01451618]
[1769798650172,0.01499784,2708.9,2706.5,13.62683735]
[1769798650321,4.61364,2708.6,2706.4,3.69492967]
[1769798650525,0.46127163,2709.8,2704.8,3.69704031]
[1769798650526,0.46127163,2709.8,2707.2,0.01499784]
[1769798650831,0.01499784,2709.2,2707.1,0.92348133]
[1769798651048,0.01499784,2709.0,2707.0,0.92351927]
[1769798651220,0.92288382,2708.9,2706.7,0.9386199]
[1769798651559,0.01499784,2708.5,2705.7,0.01499784]
[1769798651772,0.01499784,2707.9,2705.6,13.62683735]
[1769798651982,0.01499784,2707.9,2704.9,0.01499784]
[1769798651983,0.01499784,2707.3,2704.9,0.01499784]
[1769798652252,0.01499784,2706.2,2704.0,13.62683735]
[1769798652566,0.775,2706.1,2704.1,2.28718512]
[1769798652859,0.775,2706.1,2703.3,1.48199225]
[1769798652860,0.01499784,2705.9,2703.3,1.48199225]
[1769798653071,0.01499784,2707.3,2704.6,0.01499784]
[1769798653373,0.01499784,2706.9,2704.6,0.93931841]
[1769798653532,0.92353158,2707.0,2704.7,1.3879892]
[1769798653740,0.01499784,2706.9,2704.7,0.47867012]
[1769798653934,0.92353158,2707.0,2704.3,13.62683735]
[1769798654271,0.01499784,2706.3,2703.8,0.92461797]
[1769798654559,0.01499784,2705.9,2703.5,13.62683735]
[1769798654851,0.775,2706.2,2703.9,0.01499784]
[1769798655062,0.01499784,2705.9,2703.8,0.92461497]
[1769798655267,0.92387287,2706.0,2703.7,0.9246588]
[1769798655475,0.46343622,2705.9,2703.8,1.82501314]
[1769798655763,0.92370219,2706.5,2704.5,0.01499784]
[1769798655923,0.01499784,2707.2,2704.9,0.01499784]
[1769798656123,0.92336103,2707.5,2705.3,13.64183519]
[1769798656354,0.93835887,2707.5,2705.3,13.62683735]
[1769798656556,0.01499784,2706.9,2704.4,13.62683735]
[1769798656754,0.01499784,2706.4,2704.5,1.36268374]
[1769798657056,0.4781649,2707.4,2704.8,13.64183519]
[1769798657257,0.01499784,2706.8,2704.5,2.28704695]
[1769798657421,0.01499784,2705.6,2703.3,2.40678459]
[1769798657621,0.01499784,2706.0,2703.3,0.92478535]
[1769798657622,0.01499784,2705.3,2703.3,0.92478535]
[1769798657961,0.01499784,2705.4,2703.3,0.92476199]
[1769798658129,0.01499784,2706.2,2703.8,13.62683735]
[1769798658324,0.01499784,2706.9,2703.8,13.62683735]
[1769798658561,0.01499784,2706.9,2703.7,0.01499784]
[1769798658562,0.01499784,2706.9,2704.3,13.62683735]
[1769798658738,0.01499784,2706.5,2704.4,1.36418352]
[1769798659065,0.01499784,2707.1,2704.4,15.00601871]
[1769798659261,0.92373632,2706.4,2704.4,15.93042015]
[1769798659555,0.92373632,2706.4,2704.4,2.28858776]
[1769798659755,0.92373632,2706.4,2704.4,0.92440424]
[1769798660059,0.92373632,2706.4,2704.4,0.93940208]
[1769798660261,0.01499784,2708.5,2705.6,13.62683735]
[1769798660464,0.9379498,2708.7,2705.9,0.01499784]
[1769798660635,0.9379498,2708.7,2705.6,13.62683735]
[1769798660636,0.01499784,2708.2,2705.6,13.62683735]
[1769798660958,0.5241178,2708.6,2705.8,0.01499784]
[1769798661124,0.5241178,2708.6,2705.7,0.01499784]
[1769798661125,0.01499784,2708.0,2705.7,0.01499784]
[1769798661325,0.92315645,2708.1,2705.8,0.92394116]
[1769798661527,0.01499784,2707.5,2705.5,0.92401935]
[1769798661960,0.92261135,2709.7,2707.7,0.01499784]
[1769798662157,0.92210091,2711.2,2708.3,0.01499784]
[1769798662457,0.92189689,2711.8,2709.3,0.01499784]
[1769798662765,0.01499784,2710.8,2707.7,0.36499171]
[1769798662944,0.01499784,2710.8,2705.5,4.61800215]
[1769798662945,0.01499784,2708.6,2706.4,13.62683735]
[1769798663127,0.01499784,2708.8,2706.4,13.62683735]
[1769798663324,0.92220295,2710.9,2708.4,0.01499784]
[1769798663627,0.92196489,2711.6,2709.1,0.01499784]
[1769798663829,0.92196489,2711.6,2708.5,13.62683735]
[1769798663830,0.01499784,2710.9,2708.5,13.62683735]
[1769798664129,0.01499784,2710.5,2708.5,13.62683735]
[1769798664327,0.01499784,2710.2,2708.6,1.36268374]
[1769798664551,0.01499784,2710.4,2708.6,1.36268374]
[1769798664752,0.01499784,2710.3,2708.6,1.36268374]
[1769798665162,0.01499784,2710.4,2708.6,1.36268374]
[1769798665336,0.01499784,2710.7,2708.7,0.92295196]
[1769798665664,0.01499784,2710.3,2708.6,1.36268374]
[1769798665960,0.01499784,2710.3,2707.5,13.62683735]
[1769798665961,0.01499784,2709.4,2707.5,13.62683735]
[1769798666262,0.01499784,2709.6,2706.8,3.69439752]
[1769798666263,0.01499784,2709.1,2706.9,13.62683735]
[1769798666460,0.01499784,2709.5,2706.9,13.64183519]
[1769798666773,0.01499784,2708.8,2707.0,1.36418352]
[1769798667067,0.01499784,2708.1,2706.1,13.62683735]
[1769798667367,0.92322463,2707.9,2705.4,0.92407777]
[1769798667550,0.01499784,2707.4,2705.4,0.92407777]
[1769798667871,0.92322463,2707.9,2705.5,0.46204683]
[1769798667872,0.01499784,2707.7,2705.5,0.46204683]
[1769798668162,0.01499784,2708.6,2705.8,13.62683735]
[1769798668362,0.01499784,2708.2,2705.8,13.62683735]
[1769798668704,0.92288382,2709.0,2705.7,0.01499784]
[1769798668705,0.01499784,2709.4,2706.5,13.62683735]
[1769798668827,0.01499784,2709.1,2706.7,13.62683735]
[1769798669027,0.01499784,2709.5,2706.8,14.99102087]
[1769798669228,0.01499784,2709.7,2707.0,13.64183519]
[1769798669428,3.68867254,2711.1,2708.0,0.01499784]
[1769798669661,0.01499784,2711.0,2708.4,0.01499784]
[1769798669831,0.92235133,2710.5,2708.2,13.62683735]
[1769798670035,0.01499784,2710.6,2708.2,13.62683735]
[1769798670036,3.77358491,2710.3,2708.3,1.36268374]
[1769798670271,0.01499784,2710.1,2708.0,0.01499784]
[1769798670555,3.78858275,2710.3,2707.4,14.56523032]
[1769798670871,3.77358491,2710.3,2708.2,13.62683735]
[1769798671030,100.0,2710.4,2708.3,13.64183519]
[1769798671371,100.0,2710.4,2708.4,0.9230542]
[1769798671864,0.01499784,2710.3,2708.4,0.9230542]
[1769798672160,3.77358491,2710.2,2708.4,0.9230542]
[1769798672324,100.0,2710.4,2708.4,0.9230542]
[1769798672529,100.92237722,2710.4,2708.4,0.9230542]
[1769798672752,100.0,2710.4,2708.4,0.9230542]
[1769798673360,64.23484345,2710.4,2708.9,0.92288382]
[1769798673563,64.23484345,2710.4,2709.0,1.82412565]
[1769798673784,64.23484345,2710.4,2708.9,0.92288382]
[1769798673785,65.15722791,2710.4,2708.8,0.92291225]
[1769798673966,64.23484345,2710.4,2709.0,0.1024]
[1769798674127,64.23484345,2710.4,2709.2,0.1024]
[1769798674128,8.5573221,2710.4,2709.2,0.1024]
[1769798674326,14.0,2713.3,2709.8,0.1024]
[1769798674633,0.01499784,2713.9,2710.4,0.1925396]
[1769798674873,0.01499784,2713.8,2710.4,0.1925396]
[1769798675083,0.01499784,2713.2,2710.4,0.1925396]
[1769798675368,0.92165898,2712.5,2710.5,0.92233905]
[1769798675536,0.92148912,2713.0,2710.5,0.92233905]
[1769798675860,5.0,2712.9,2710.5,0.92233905]
[1769798676061,14.01499784,2712.7,2710.5,0.92233905]
[1769798676359,14.0,2711.9,2709.2,3.69105637]
[1769798676564,14.0,2711.9,2707.7,6.56490062]
[1769798676565,14.01499784,2711.6,2708.2,0.774]
[1769798676728,14.01499784,2711.0,2708.2,3.69244559]
[1769798676927,14.01499784,2710.8,2707.4,3.69352539]
[1769798677133,5.0,2710.9,2709.4,3.69074397]
[1769798677437,5.9222234,2710.9,2709.5,0.3690744]
[1769798677653,5.9222234,2710.9,2707.7,6.56490062]
[1769798677654,5.9222234,2710.9,2709.2,0.9227753]
[1769798677840,5.93722124,2710.9,2708.0,3.69271416]
[1769798678160,14.01499784,2710.7,2708.8,0.92290481]
[1769798678324,14.01499784,2710.7,2707.1,2.59436222]
[1769798678325,14.0,2710.7,2708.4,3.69215839]
[1769798678530,5.0,2710.6,2709.5,0.92267822]
[1769798678769,5.0,2710.8,2709.5,0.92267822]
[1769798678948,3.70186789,2712.4,2709.5,0.92267822]
[1769798678949,0.92172694,2712.3,2709.5,0.92267822]
[1769798679159,5.0,2712.3,2709.5,0.92267822]
[1769798679532,1.40149978,2712.6,2709.7,0.3359703]
[1769798679732,5.0,2712.4,2709.7,0.3359703]
[1769798679964,5.0,2712.4,2709.4,3.69071784]
[1769798679965,0.5,2712.4,2709.4,3.69071784]
[1769798680175,5.0,2712.3,2709.5,0.1024]
[1769798680348,19.0,2713.2,2709.6,0.2335703]
[1769798680684,19.0,2713.2,2709.7,0.1024]
[1769798681154,0.01499784,2713.1,2709.7,0.1024]
[1769798681474,0.92155706,2712.8,2709.8,0.92257731]
[1769798681775,0.92155706,2712.8,2710.0,0.1024]
[1769798681776,0.46227832,2712.7,2710.0,0.1024]
[1769798681978,5.46227832,2712.7,2710.0,0.1024]
[1769798682475,5.46227832,2712.7,2710.2,0.1024]
[1769798682684,5.0,2712.7,2710.4,0.1024]
[1769798683279,5.0,2712.7,2710.0,0.1024]
[1769798683478,5.0,2712.7,2710.2,0.2335703]
[1769798683664,5.0,2712.7,2710.3,0.1024]
[1769798683972,14.0,2714.8,2711.0,0.2335703]
[1769798684283,5.0,2715.1,2712.6,0.2335703]
[1769798684583,5.0,2715.0,2712.4,0.773]